fUST/lending_fUST_20250923
["ID","MTS","AMOUNT","RATE_DAILY","PERIOD"]
[387192347,1758629450515,-480.0,0.0002,2]
[387192348,1758629450524,-480.0,0.0002,2]
[387192349,1758629450533,-480.0,0.0002,2]
[387192350,1758629450542,-480.0,0.0002,2]
[387192351,1758629450552,-480.0,0.0002,2]
[387192352,1758629450561,-480.0,0.0002,2]
[387192353,1758629450570,-2464.81,0.0002,2]
[387192354,1758629450579,-327.42741492,0.0002,2]
[387192355,1758629450587,-480.0,0.0002,2]
[387192356,1758629450597,-540.5,0.0002,2]
[387192357,1758629450607,-480.0,0.0002,2]
[387192358,1758629450616,-480.0,0.0002,2]
[387192359,1758629450624,-844.65,0.0002,2]
[387192360,1758629450632,-480.0,0.0002,2]
[387192361,1758629450639,-363.66748593,0.0002,2]
[387192362,1758629450646,-745.7,0.0002,2]
[387192363,1758629450653,-495.5,0.0002,2]
[387192364,1758629450659,-761.17,0.0002,2]
[387192365,1758629450666,-480.0,0.0002,2]
[387192366,1758629450673,-480.0,0.0002,2]
[387192367,1758629450679,-483.71829359,0.0002,2]
[387192368,1758629450685,-487.98,0.0002,2]
[387192369,1758629450692,-1309.5,0.0002,2]
[387192370,1758629450700,-480.0,0.0002,2]
[387192371,1758629450710,-951.61,0.0002,2]
[387192372,1758629450719,-480.0,0.0002,2]
[387192373,1758629450729,-777.42,0.0002,2]
[387192374,1758629450738,-986.73,0.0002,2]
[387192375,1758629450748,-480.0,0.0002,2]
[387192376,1758629450758,-480.0,0.0002,2]
[387192377,1758629450767,-485.86048733,0.0002,2]
[387192378,1758629450776,-480.0,0.0002,2]
[387192379,1758629450784,-151.0,0.000201,3]
[387192380,1758629450794,-351.662661,0.000201,10]
[387192381,1758629450803,-175.0,0.00020128,2]
[387192382,1758629450812,-175.0,0.00020132,2]
[387192383,1758629450821,-19313.09183862,0.000202,2]
[387192384,1758629451027,-665.64126112,0.000196,2]
[387192385,1758629451046,-334.35873888,0.000196,2]
[387192386,1758629451055,-1000.0,0.000201,2]
[387192387,1758629451064,-4083.9457691,0.000202,2]
[387192388,1758629451075,-5498.33925182,0.000202,2]
[387192389,1758629456328,-515.54,0.00018968,3]
[387192390,1758629462892,300.0,0.00018977,2]
[387192391,1758629472242,173.05032972,0.00018977,2]
[387192393,1758629484265,575.82,0.00018968,3]
[387192394,1758629522710,300.0,0.00018977,2]
[387192395,1758629541135,1200.0,0.00018977,2]
[387192396,1758629553071,500.0,0.00018977,2]
[387192397,1758629553113,500.0,0.00018977,2]
[387192398,1758629553148,631.03725136,0.00018977,2]
[387192399,1758629553181,500.0,0.00018977,2]
[387192400,1758629553480,500.0,0.00018977,2]
[387192401,1758629553511,500.0,0.00018977,2]
[387192402,1758629553646,500.0,0.00018977,2]
[387192403,1758629553677,500.0,0.00018977,2]
[387192404,1758629553853,500.0,0.00018977,2]
[387192405,1758629553887,548.30452878,0.00018977,2]
[387192406,1758629553917,500.0,0.00018977,2]
[387192407,1758629553963,500.0,0.00018977,2]
[387192408,1758629554049,240.71789014,0.00018977,2]
[387192409,1758629554075,259.28210986,0.00018977,2]
[387192410,1758629582362,300.0,0.00018977,2]
[387192411,1758629614246,301.73883949,0.00018967,2]
[387192412,1758629642357,300.0,0.00018977,2]
[387192413,1758629681335,206.143505,0.00018264,2]
[387192416,1758629702233,234.0,0.00018977,2]
[387192417,1758629702372,300.0,0.00018977,2]
[387192418,1758629703858,300.0,0.00018977,2]
[387192419,1758629707909,1200.0,0.00018977,2]
[387192420,1758629749965,603.47767896,0.00018966,2]
[387192421,1758629763080,300.0,0.00018977,2]
[387192424,1758629822639,300.0,0.00018977,2]
[387192425,1758629883014,300.0,0.00018977,2]
[387192426,1758629888960,974.50729866,0.00018966,2]
[387192427,1758629924883,310.72773587,0.00018409,2]
[387192428,1758629926227,155.36386793,0.00018603,2]
[387192430,1758629948945,507.0,0.00018978,2]
[387192431,1758629949122,258.230672,0.00018264,2]
[387192432,1758630178020,-174.690979,0.00018199,2]
[387192433,1758630178047,-302.48582854,0.000189,2]
[387192434,1758630178076,-200.0,0.00018967,2]
[387192435,1758630178102,-295.11315763,0.00018967,2]
[387192436,1758630178132,-200.0,0.00018967,2]
[387192437,1758630178160,-151.0,0.00018967,2]
[387192438,1758630178188,-250.0,0.00018967,2]
[387192439,1758630178216,-250.0,0.00018967,2]
[387192440,1758630178244,-253.0,0.00018976,2]
[387192441,1758630178273,-235.0,0.00018977,2]
[387192442,1758630178300,-1200.0,0.00018977,2]
[387192443,1758630178328,-852.69388638,0.00018978,2]
[387192447,1758630307385,1200.0,0.00018977,2]
[387192451,1758630460763,72.0422969,0.00018978,2]
[387192452,1758630460788,674.06485363,0.00018978,2]
[387192456,1758630607814,434.0,0.00018977,2]
[387192460,1758630631992,-8261.31037054,0.00018978,2]
[387192463,1758630632048,-1211.56712115,0.00018978,2]
[387192466,1758630632060,-1726.80952258,0.00018978,2]
[387192467,1758630632071,-3562.47155184,0.00018978,2]
[387192468,1758630632104,-177443.02018918,0.00018978,2]
[387192568,1758630637841,-4342.98950061,0.00018978,2]
[387192612,1758630639888,-294.0690114,0.00018978,2]
[387192703,1758630642936,-2998.89325437,0.00018978,2]
[387192704,1758630642945,-499.84397076,0.00019,7]
[387192705,1758630642954,-247.584,0.00019166,2]
[387192706,1758630642964,-250.0,0.00019166,2]
[387192707,1758630642973,-250.0,0.00019166,2]
[387192708,1758630642982,-200.0,0.00019166,2]
[387192709,1758630642991,-200.0,0.00019166,2]
[387192710,1758630643000,-151.0,0.00019166,2]
[387192711,1758630643009,-321.47426151,0.00019173,2]
[387192712,1758630643018,-500.0,0.00019173,2]
[387192713,1758630643027,-500.0,0.00019173,2]
[387192714,1758630643036,-500.7456347,0.00019173,2]
[387192715,1758630643046,-500.0,0.00019173,2]
[387192716,1758630643055,-500.0,0.00019173,2]
[387192717,1758630643064,-500.0,0.00019173,2]
[387192718,1758630643074,-500.0,0.00019173,2]
[387192719,1758630643082,-500.0,0.00019173,2]
[387192720,1758630643092,-480.0,0.00019178,2]
[387192721,1758630643101,-480.0,0.00019178,2]
[387192722,1758630643110,-483.67562855,0.00019178,2]
[387192723,1758630643119,-480.0,0.00019178,2]
[387192724,1758630643128,-480.0,0.00019178,2]
[387192725,1758630643137,-480.62656833,0.00019178,2]
[387192726,1758630643147,-480.0,0.00019178,2]
[387192727,1758630643156,-480.0,0.00019178,2]
[387192728,1758630643165,-486.74127188,0.00019178,2]
[387192729,1758630643174,-480.99319864,0.00019178,2]
[387192730,1758630643184,-480.0,0.00019178,2]
[387192731,1758630643193,-482.71047575,0.00019178,2]
[387192732,1758630643202,-482.622133,0.00019178,2]
[387192733,1758630643211,-480.0,0.00019178,2]
[387192734,1758630643220,-480.0,0.00019178,2]
[387192735,1758630643235,-480.0,0.00019178,2]
[387192736,1758630643250,-486.64763423,0.00019178,2]
[387192737,1758630643260,-480.0,0.00019178,2]
[387192738,1758630643270,-480.0,0.00019178,2]
[387192739,1758630643280,-480.0,0.00019178,2]
[387192740,1758630643289,-480.0,0.00019178,2]
[387192741,1758630643300,-480.0,0.00019178,2]
[387192742,1758630643310,-480.0,0.00019178,2]
[387192743,1758630643320,-480.0,0.00019178,2]
[387192744,1758630643329,-480.0,0.00019178,2]
[387192745,1758630643339,-480.0,0.00019178,2]
[387192746,1758630643349,-480.0,0.00019178,2]
[387192747,1758630643358,-480.0,0.00019178,2]
[387192748,1758630643368,-480.0,0.00019178,2]
[387192749,1758630643377,-480.0,0.00019178,2]
[387192750,1758630643388,-480.0,0.00019178,2]
[387192751,1758630643397,-480.0,0.00019178,2]
[387192752,1758630643406,-482.52437463,0.00019178,2]
[387192753,1758630643416,-444.89586175,0.00019178,2]
[387192754,1758630643426,-480.0,0.00019178,2]
[387192755,1758630643436,-480.0,0.00019178,2]
[387192756,1758630643446,-484.77757497,0.00019178,2]
[387192757,1758630643455,-416.62783752,0.00019178,2]
[387192758,1758630643465,-480.0,0.00019178,2]
[387192759,1758630643475,-480.0,0.00019178,2]
[387192760,1758630643485,-480.0,0.00019178,2]
[387192761,1758630643495,-480.0,0.00019178,2]
[387192762,1758630643504,-480.0,0.00019178,2]
[387192763,1758630643514,-480.0,0.00019178,2]
[387192764,1758630643524,-482.39098968,0.00019178,2]
[387192765,1758630643534,-480.0,0.00019178,2]
[387192766,1758630643543,-480.0,0.00019178,2]
[387192767,1758630643553,-481.65020464,0.00019178,2]
[387192768,1758630643563,-480.0,0.00019178,2]
[387192769,1758630643573,-480.0,0.00019178,2]
[387192770,1758630643583,-480.0,0.00019178,2]
[387192771,1758630643592,-480.0,0.00019178,2]
[387192772,1758630643602,-483.13137942,0.00019178,2]
[387192773,1758630643611,-481.17789774,0.00019178,2]
[387192774,1758630643621,-480.87566654,0.00019178,2]
[387192775,1758630643631,-480.0,0.00019178,2]
[387192776,1758630643640,-480.0,0.00019178,2]
[387192777,1758630643650,-480.0,0.00019178,2]
[387192778,1758630643659,-480.0,0.00019178,2]
[387192779,1758630643673,-480.0,0.00019178,2]
[387192780,1758630643683,-480.0,0.00019178,2]
[387192781,1758630643692,-480.0,0.00019178,2]
[387192782,1758630643702,-480.0,0.00019178,2]
[387192783,1758630643713,-480.0,0.00019178,2]
[387192784,1758630643722,-480.0,0.00019178,2]
[387192785,1758630643732,-480.0,0.00019178,2]
[387192786,1758630643744,-498.98741053,0.00019178,2]
[387192787,1758630643753,-480.0,0.00019178,2]
[387192788,1758630643762,-483.46190086,0.00019178,2]
[387192789,1758630643772,-480.0,0.00019178,2]
[387192790,1758630643781,-480.0,0.00019178,2]
[387192791,1758630643791,-480.0,0.00019178,2]
[387192792,1758630643801,-446.48756116,0.00019178,2]
[387192793,1758630643810,-481.60665272,0.00019178,2]
[387192794,1758630643820,-480.0,0.00019178,2]
[387192795,1758630643830,-480.0,0.00019178,2]
[387192796,1758630643839,-480.0,0.00019178,2]
[387192797,1758630643849,-480.0,0.00019178,2]
[387192798,1758630643858,-485.49821744,0.00019178,2]
[387192799,1758630643868,-423.42540117,0.00019178,2]
[387192800,1758630643878,-480.0,0.00019178,2]
[387192801,1758630643888,-480.0,0.00019178,2]
[387192802,1758630643897,-480.0,0.00019178,2]
[387192803,1758630643911,-480.0,0.00019178,2]
[387192804,1758630643920,-480.0,0.00019178,2]
[387192805,1758630643930,-480.0,0.00019178,2]
[387192806,1758630643940,-469.07878149,0.00019178,2]
[387192807,1758630643952,-480.0,0.00019178,2]
[387192808,1758630643966,-534.3692519,0.00019178,2]
[387192809,1758630643977,-480.0,0.00019178,2]
[387192810,1758630643986,-480.0,0.00019178,2]
[387192811,1758630643996,-480.0,0.00019178,2]
[387192812,1758630644005,-480.0,0.00019178,2]
[387192813,1758630644021,-480.0,0.00019178,2]
[387192814,1758630644030,-480.0,0.00019178,2]
[387192815,1758630644039,-481.17742976,0.00019178,2]
[387192816,1758630644048,-480.0,0.00019178,2]
[387192817,1758630644059,-480.0,0.00019178,2]
[387192818,1758630644069,-480.97922742,0.00019178,2]
[387192819,1758630644078,-480.0,0.00019178,2]
[387192820,1758630644089,-485.6145603,0.00019178,2]
[387192821,1758630644099,-491.56586594,0.00019178,2]
[387192822,1758630644108,-496.58980733,0.00019178,2]
[387192823,1758630644118,-480.0,0.00019178,2]
[387192824,1758630644127,-480.0,0.00019178,2]
[387192825,1758630644136,-480.0,0.00019178,2]
[387192826,1758630644145,-480.0,0.00019178,2]
[387192827,1758630644154,-480.0,0.00019178,2]
[387192828,1758630644164,-480.0,0.00019178,2]
[387192829,1758630644173,-485.50089454,0.00019178,2]
[387192830,1758630644182,-487.86259142,0.00019178,2]
[387192831,1758630644191,-480.0,0.00019178,2]
[387192832,1758630644201,-484.7460356,0.00019178,2]
[387192833,1758630644210,-481.34098132,0.00019178,2]
[387192834,1758630644220,-509.72332162,0.00019178,2]
[387192835,1758630644230,-480.0,0.00019178,2]
[387192836,1758630644240,-480.0,0.00019178,2]
[387192837,1758630644249,-489.33498769,0.00019178,2]
[387192838,1758630644259,-616.94142351,0.00019178,2]
[387192839,1758630644268,-480.88683343,0.00019178,2]
[387192840,1758630644277,-480.0,0.00019178,2]
[387192841,1758630644287,-480.0,0.00019178,2]
[387192842,1758630644296,-482.89291633,0.00019178,2]
[387192843,1758630644306,-480.32447639,0.00019178,2]
[387192844,1758630644315,-480.0,0.00019178,2]
[387192845,1758630644324,-480.0,0.00019178,2]
[387192846,1758630644333,-480.0,0.00019178,2]
[387192847,1758630644343,-480.0,0.00019178,2]
[387192848,1758630644352,-480.0,0.00019178,2]
[387192849,1758630644362,-480.0,0.00019178,2]
[387192850,1758630644371,-480.0,0.00019178,2]
[387192851,1758630644380,-547.96077,0.00019178,2]
[387192852,1758630644390,-265.81003938,0.00019178,2]
[387192853,1758630644400,-480.0,0.00019178,2]
[387192854,1758630644410,-480.0,0.00019178,2]
[387192855,1758630644420,-480.0,0.00019178,2]
[387192856,1758630644430,-480.0,0.00019178,2]
[387192857,1758630644440,-556.87776699,0.00019178,2]
[387192858,1758630644450,-480.0,0.00019178,2]
[387192859,1758630644469,-480.0,0.00019178,2]
[387192860,1758630644487,-480.0,0.00019178,2]
[387192861,1758630644504,-480.0,0.00019178,2]
[387192862,1758630644515,-480.0,0.00019178,2]
[387192863,1758630644524,-480.0,0.00019178,2]
[387192864,1758630644534,-480.0,0.00019178,2]
[387192865,1758630644543,-480.0,0.00019178,2]
[387192866,1758630644552,-480.0,0.00019178,2]
[387192867,1758630644562,-480.0,0.00019178,2]
[387192868,1758630644571,-480.0,0.00019178,2]
[387192869,1758630644581,-480.0,0.00019178,2]
[387192870,1758630644591,-481.43190396,0.00019178,2]
[387192871,1758630644600,-480.0,0.00019178,2]
[387192872,1758630644609,-480.0,0.00019178,2]
[387192873,1758630644619,-480.0,0.00019178,2]
[387192874,1758630644628,-480.0,0.00019178,2]
[387192875,1758630644638,-480.0,0.00019178,2]
[387192876,1758630644647,-480.0,0.00019178,2]
[387192877,1758630644657,-480.0,0.00019178,2]
[387192878,1758630644669,-480.0,0.00019178,2]
[387192879,1758630644679,-480.0,0.00019178,2]
[387192880,1758630644689,-480.0,0.00019178,2]
[387192881,1758630644699,-480.0,0.00019178,2]
[387192882,1758630644709,-481.39429329,0.00019178,2]
[387192883,1758630644718,-480.0,0.00019178,2]
[387192884,1758630644728,-480.0,0.00019178,2]
[387192885,1758630644738,-480.0,0.00019178,2]
[387192886,1758630644747,-480.0,0.00019178,2]
[387192887,1758630644758,-480.0,0.00019178,2]
[387192888,1758630644768,-480.0,0.00019178,2]
[387192889,1758630644777,-480.0,0.00019178,2]
[387192890,1758630644787,-480.0,0.00019178,2]
[387192891,1758630644796,-480.0,0.00019178,2]
[387192892,1758630644807,-482.70692241,0.00019178,2]
[387192893,1758630644817,-639.97,0.00019178,2]
[387192894,1758630644827,-480.0,0.00019178,2]
[387192895,1758630644837,-480.0,0.00019178,2]
[387192896,1758630644846,-502.18894731,0.00019178,2]
[387192897,1758630644856,-480.83688586,0.00019178,2]
[387192898,1758630644865,-480.0,0.00019178,2]
[387192899,1758630644874,-480.0,0.00019178,2]
[387192900,1758630644883,-489.11128082,0.00019178,2]
[387192901,1758630644893,-480.0,0.00019178,2]
[387192902,1758630644902,-480.0,0.00019178,2]
[387192903,1758630644911,-480.0,0.00019178,2]
[387192904,1758630644921,-420.0,0.00019178,2]
[387192905,1758630644930,-480.0,0.00019178,2]
[387192906,1758630644940,-480.0,0.00019178,2]
[387192907,1758630644949,-480.0,0.00019178,2]
[387192908,1758630644959,-480.0,0.00019178,2]
[387192909,1758630644968,-480.0,0.00019178,2]
[387192910,1758630644977,-480.0,0.00019178,2]
[387192911,1758630644987,-306.60501693,0.00019178,2]
[387192912,1758630644997,-480.0,0.00019178,2]
[387192913,1758630645007,-480.0,0.00019178,2]
[387192914,1758630645022,-480.0,0.00019178,2]
[387192915,1758630645031,-480.0,0.00019178,2]
[387192916,1758630645041,-482.96370396,0.00019178,2]
[387192917,1758630645050,-480.0,0.00019178,2]
[387192918,1758630645060,-480.0,0.00019178,2]
[387192919,1758630645070,-480.0,0.00019178,2]
[387192920,1758630645079,-480.0,0.00019178,2]
[387192921,1758630645089,-480.0,0.00019178,2]
[387192922,1758630645198,-480.0,0.00019178,2]
[387192923,1758630645220,-480.0,0.00019178,2]
[387192924,1758630645229,-480.0,0.00019178,2]
[387192925,1758630645238,-480.0,0.00019178,2]
[387192926,1758630645248,-480.0,0.00019178,2]
[387192927,1758630645258,-461.76055794,0.00019178,2]
[387192928,1758630645267,-480.0,0.00019178,2]
[387192929,1758630645276,-480.0,0.00019178,2]
[387192930,1758630645285,-480.0,0.00019178,2]
[387192931,1758630645295,-480.0,0.00019178,2]
[387192932,1758630645304,-480.0,0.00019178,2]
[387192933,1758630645314,-623.77,0.00019178,2]
[387192934,1758630645323,-480.0,0.00019178,2]
[387192935,1758630645333,-480.0,0.00019178,2]
[387192936,1758630645342,-480.0,0.00019178,2]
[387192937,1758630645351,-387.51377771,0.00019178,2]
[387192938,1758630645360,-480.56793342,0.00019178,2]
[387192939,1758630645369,-480.0,0.00019178,2]
[387192941,1758630645379,-480.0,0.00019178,2]
[387192943,1758630645388,-480.0,0.00019178,2]
[387192945,1758630645397,-516.93299999,0.00019178,2]
[387192947,1758630645406,-480.0,0.00019178,2]
[387192949,1758630645415,-480.0,0.00019178,2]
[387192951,1758630645425,-480.0,0.00019178,2]
[387192953,1758630645434,-481.88235915,0.00019178,2]
[387192955,1758630645443,-480.0,0.00019178,2]
[387192957,1758630645452,-480.0,0.00019178,2]
[387192959,1758630645462,-480.0,0.00019178,2]
[387192960,1758630645471,-480.0,0.00019178,2]
[387192961,1758630645481,-480.0,0.00019178,2]
[387192962,1758630645490,-621.41,0.00019178,2]
[387192963,1758630645499,-381.19260475,0.00019178,2]
[387192964,1758630645508,-480.0,0.00019178,2]
[387192966,1758630645518,-480.0,0.00019178,2]
[387192968,1758630645527,-480.0,0.00019178,2]
[387192969,1758630645537,-480.0,0.00019178,2]
[387192970,1758630645546,-480.0,0.00019178,2]
[387192971,1758630645556,-480.0,0.00019178,2]
[387192972,1758630645565,-482.0518681,0.00019178,2]
[387192973,1758630645575,-553.3194877,0.00019178,2]
[387192974,1758630645584,-480.0,0.00019178,2]
[387192975,1758630645594,-480.0,0.00019178,2]
[387192976,1758630645603,-480.0,0.00019178,2]
[387192977,1758630645612,-724.5,0.00019178,2]
[387192978,1758630645621,-480.0,0.00019178,2]
[387192979,1758630645631,-480.0,0.00019178,2]
[387192980,1758630645640,-488.5983877,0.00019178,2]
[387192981,1758630645649,-480.0,0.00019178,2]
[387192982,1758630645659,-480.0,0.00019178,2]
[387192983,1758630645672,-486.06807677,0.00019178,2]
[387192984,1758630645681,-493.86383118,0.00019178,2]
[387192985,1758630645690,-480.0,0.00019178,2]
[387192986,1758630645699,-480.0,0.00019178,2]
[387192987,1758630645708,-480.0,0.00019178,2]
[387192988,1758630645718,-480.0,0.00019178,2]
[387192989,1758630645728,-480.0,0.00019178,2]
[387192990,1758630645737,-480.0,0.00019178,2]
[387192991,1758630645747,-480.0,0.00019178,2]
[387192992,1758630645756,-480.0,0.00019178,2]
[387192993,1758630645766,-480.0,0.00019178,2]
[387192995,1758630645775,-480.0,0.00019178,2]
[387192996,1758630645784,-480.0,0.00019178,2]
[387192997,1758630645794,-480.0,0.00019178,2]
[387192998,1758630645804,-480.0,0.00019178,2]
[387192999,1758630645813,-1931.02,0.00019178,2]
[387193000,1758630645822,-1848.29,0.00019178,2]
[387193001,1758630645831,-480.0,0.00019178,2]
[387193002,1758630645840,-480.0,0.00019178,2]
[387193003,1758630645850,-1421.56,0.00019178,2]
[387193004,1758630645858,-460.36203989,0.00019178,2]
[387193006,1758630646570,-19.63796011,0.00019178,2]
[387193007,1758630646579,-480.0,0.00019178,2]
[387193008,1758630646588,-480.0,0.00019178,2]
[387193009,1758630646597,-480.0,0.00019178,2]
[387193010,1758630646607,-480.0,0.00019178,2]
[387193011,1758630646616,-480.0,0.00019178,2]
[387193012,1758630646627,-480.0,0.00019178,2]
[387193013,1758630646637,-480.0,0.00019178,2]
[387193014,1758630646646,-480.0,0.00019178,2]
[387193015,1758630646656,-8.00049528,0.00019178,2]
[387193016,1758630646679,-605.987069,0.00019178,2]
[387193017,1758630753449,-652.84375674,0.00018877,2]
[387193023,1758630763707,-6951.41669008,0.00018878,2]
[387193024,1758630781817,196.446425,0.000182,2]
[387193025,1758630783032,300.0,0.00018877,2]
[387193026,1758630783628,-9503.563575,0.00018878,2]
[387193039,1758631761175,196.446425,0.0001797,2]
[387193077,1758631832143,-258.2306724,0.00018335,2]
[387193078,1758631832152,-500.0,0.000184,2]
[387193079,1758631832161,-1200.0,0.00018876,2]
[387193080,1758631832171,-265.0,0.00018877,2]
[387193081,1758631832180,-300.0,0.00018877,2]
[387193082,1758631832189,-300.0,0.00018877,2]
[387193083,1758631832198,-300.0,0.00018877,2]
[387193084,1758631832207,-300.0,0.00018877,2]
[387193085,1758631832216,-12345.04973492,0.00018878,2]
[387193086,1758631832225,-302.51602579,0.000189,2]
[387193087,1758631832235,-269.7412961,0.00018977,2]
[387193088,1758631832244,-4988.3377199,0.00019058,2]
[387193089,1758631832253,-16150.90380615,0.00019058,2]
[387193090,1758631832264,-1024.88292858,0.00019058,2]
[387193198,1758631838050,-500.0,0.00019057,2]
[387193199,1758631838061,-370.31111499,0.00019057,2]
[387193200,1758631838071,-623.85467772,0.00019057,2]
[387193201,1758631838081,-266.73789425,0.00019057,2]
[387193202,1758631838092,-60.14645599,0.00019057,2]
[387193203,1758631838107,-500.0,0.00019057,2]
[387193204,1758631838117,-534.17173195,0.00019057,2]
[387193205,1758631838127,-2857.75726752,0.00019058,2]
[387193206,1758631838218,-1222.32199608,0.00019058,2]
[387193207,1758631838230,-11707.6655,0.00019058,2]
[387193208,1758631838242,-4308.66042657,0.00019058,2]
[387193209,1758631838251,-302.66703012,0.00019089,2]
[387193210,1758631838261,-325.25951711,0.00019166,2]
[387193211,1758631838270,-151.0,0.00019166,2]
[387193212,1758631838280,-151.0,0.00019166,2]
[387193213,1758631838289,-350.0,0.00019166,2]
[387193214,1758631838299,-250.0,0.00019166,2]
[387193215,1758631838308,-587.28,0.00019168,3]
[387193216,1758631838317,-293.64,0.00019168,3]
[387193217,1758631838327,-880.97,0.00019168,3]
[387193218,1758631838336,-508.72805618,0.00019173,2]
[387193219,1758631838346,-506.38224766,0.00019173,2]
[387193220,1758631838355,-500.0,0.00019173,2]
[387193221,1758631838364,-435.91645048,0.00019173,2]
[387193222,1758631838374,-308.0146575,0.00019173,2]
[387193223,1758631838383,-500.0,0.00019173,2]
[387193224,1758631838393,-0.33356643,0.00019173,2]
[387193228,1758631840157,-499.66643357,0.00019173,2]
[387193229,1758631840166,-500.0,0.00019173,2]
[387193230,1758631840176,-198.067,0.00019177,2]
[387193231,1758631840185,-155.0,0.00019177,2]
[387193232,1758631840195,-500.0,0.00019177,2]
[387193233,1758631840204,-177.29062797,0.00019177,2]
[387193234,1758631840214,-229.15423012,0.00019177,2]
[387193235,1758631840223,-500.0,0.00019177,2]
[387193236,1758631840232,-500.0,0.00019177,2]
[387193237,1758631840241,-500.0,0.00019177,2]
[387193238,1758631840251,-500.0,0.00019177,2]
[387193239,1758631840260,-507.31224005,0.00019177,2]
[387193240,1758631840270,-500.0,0.00019177,2]
[387193241,1758631840279,-491.76147447,0.00019177,2]
[387193242,1758631840290,-8.23852553,0.00019177,2]
[387193243,1758631840300,-500.0,0.00019177,2]
[387193244,1758631840309,-480.0,0.00019178,2]
[387193245,1758631840319,-480.0,0.00019178,2]
[387193246,1758631840328,-138.73391578,0.00019178,2]
[387193247,1758631840341,-343.28986193,0.00019178,2]
[387193248,1758631840351,-480.0,0.00019178,2]
[387193249,1758631840360,-480.0,0.00019178,2]
[387193250,1758631840370,-487.37103178,0.00019178,2]
[387193251,1758631840379,-489.11563356,0.00019178,2]
[387193252,1758631840388,-483.72816963,0.00019178,2]
[387193253,1758631840398,-599.39919038,0.00019178,2]
[387193254,1758631840407,-482.80728571,0.00019178,2]
[387193255,1758631840418,-480.0,0.00019178,2]
[387193256,1758631840427,-483.35385649,0.00019178,2]
[387193257,1758631840437,-480.0,0.00019178,2]
[387193258,1758631840446,-480.0,0.00019178,2]
[387193259,1758631840455,-480.0,0.00019178,2]
[387193260,1758631840465,-482.96352197,0.00019178,2]
[387193261,1758631840474,-55.05179389,0.00019178,2]
[387193262,1758631840486,-424.94820611,0.00019178,2]
[387193263,1758631840496,-486.87041695,0.00019178,2]
[387193264,1758631840505,-480.0,0.00019178,2]
[387193265,1758631840514,-480.0,0.00019178,2]
[387193266,1758631840524,-481.68566798,0.00019178,2]
[387193267,1758631840533,-480.0,0.00019178,2]
[387193268,1758631840543,-480.0,0.00019178,2]
[387193269,1758631840552,-480.0,0.00019178,2]
[387193270,1758631840561,-467.81802097,0.00019178,2]
[387193271,1758631840571,-480.0,0.00019178,2]
[387193272,1758631840581,-386.72460614,0.00019178,2]
[387193273,1758631840591,-480.0,0.00019178,2]
[387193274,1758631840601,-480.0,0.00019178,2]
[387193275,1758631840611,-481.13423671,0.00019178,2]
[387193276,1758631840620,-480.0,0.00019178,2]
[387193277,1758631840629,-480.0,0.00019178,2]
[387193278,1758631840639,-480.0,0.00019178,2]